[Event "Titled Tuesday Blitz August 22 Late 2023"]
[White "NLLO777"]
[Black "Chigaev, Maksim"]
[BlackFideId "4108116"]
[WhiteElo "2489"]
[BlackElo "2948"]
[Result "0-1"]
[Round "1"]
[TimeControl "180+1"]
[Date "2023.08.22"]
[WhiteClock "0:00:08"]
[BlackClock "0:00:45"]
[Board "33"]

1. d4 {[%clk 0:03:00]}  Nf6 {[%clk 0:02:59]} 2. c4 {[%clk 0:03:01]}  g6 {[%clk 0:02:59]} 3. Nf3 {[%clk 0:03:01]}  Bg7 {[%clk 0:02:59]} 4. g3 {[%clk 0:03:02]}  O-O {[%clk 0:03:00]} 5. Bg2 {[%clk 0:03:03]}  d6 {[%clk 0:03:00]} 6. O-O {[%clk 0:03:03]}  c5 {[%clk 0:03:01]} 7. Nc3 {[%clk 0:03:03]}  Nc6 {[%clk 0:03:01]} 8. d5 {[%clk 0:03:03]}  Na5 {[%clk 0:03:01]} 9. Nd2 {[%clk 0:03:04]}  a6 {[%clk 0:03:02]} 10. Qc2 {[%clk 0:03:04]}  b5 {[%clk 0:03:02]} 11. b3 {[%clk 0:03:05]}  b4 {[%clk 0:03:01]} 12. Nd1 {[%clk 0:02:48]}  Bf5 {[%clk 0:03:01]} 13. e4 {[%clk 0:02:20]}  Nxe4 {[%clk 0:03:00]} 14. Bxe4 {[%clk 0:02:18]}  Bxe4 {[%clk 0:02:59]} 15. Nxe4 {[%clk 0:02:19]}  Bxa1 {[%clk 0:02:59]} 16. Bh6 {[%clk 0:02:19]}  Bg7 {[%clk 0:02:56]} 17. Bxg7 {[%clk 0:02:19]}  Kxg7 {[%clk 0:02:57]} 18. Qb2+ {[%clk 0:02:19]}  Kg8 {[%clk 0:02:44]} 19. Ne3 {[%clk 0:02:19]}  Qd7 {[%clk 0:02:23]} 20. f4 {[%clk 0:01:57]}  f5 {[%clk 0:02:07]} 21. Ng5 {[%clk 0:01:57]}  Nb7 {[%clk 0:02:05]} 22. g4 {[%clk 0:01:46]}  Nd8 {[%clk 0:01:58]} 23. gxf5 {[%clk 0:01:43]}  Rxf5 {[%clk 0:01:58]} 24. Nxf5 {[%clk 0:01:36]}  Qxf5 {[%clk 0:01:58]} 25. Qe2 {[%clk 0:01:27]}  Ra7 {[%clk 0:01:52]} 26. Qe4 {[%clk 0:01:19]}  Qxe4 {[%clk 0:01:47]} 27. Nxe4 {[%clk 0:01:19]}  Nf7 {[%clk 0:01:47]} 28. f5 {[%clk 0:01:17]}  gxf5 {[%clk 0:01:46]} 29. Rxf5 {[%clk 0:01:18]}  a5 {[%clk 0:01:47]} 30. Rf3 {[%clk 0:00:51]}  a4 {[%clk 0:01:41]} 31. Ng3 {[%clk 0:00:44]}  Ne5 {[%clk 0:01:39]} 32. Re3 {[%clk 0:00:43]}  Kf7 {[%clk 0:01:25]} 33. Kg2 {[%clk 0:00:38]}  axb3 {[%clk 0:01:17]} 34. axb3 {[%clk 0:00:39]}  Ra2+ {[%clk 0:01:17]} 35. Kh3 {[%clk 0:00:39]}  Ra3 {[%clk 0:01:13]} 36. Nf1 {[%clk 0:00:27]}  e6 {[%clk 0:01:13]} 37. dxe6+ {[%clk 0:00:25]}  Kxe6 {[%clk 0:01:14]} 38. Kg3 {[%clk 0:00:25]}  Kf5 {[%clk 0:01:06]} 39. Nd2 {[%clk 0:00:21]}  Ra8 {[%clk 0:01:01]} 40. Ne4 {[%clk 0:00:21]}  Rg8+ {[%clk 0:01:01]} 41. Kh3 {[%clk 0:00:19]}  Kf4 {[%clk 0:00:59]} 42. Re1 {[%clk 0:00:18]}  Nf3 {[%clk 0:00:57]} 43. Nf6 {[%clk 0:00:13]}  Nxe1 {[%clk 0:00:47]} 44. Nxg8 {[%clk 0:00:13]}  Nf3 {[%clk 0:00:46]} 45. Nf6 {[%clk 0:00:13]}  Nd4 {[%clk 0:00:46]} 46. Nxh7 {[%clk 0:00:12]}  Nxb3 {[%clk 0:00:46]} 47. Nf6 {[%clk 0:00:13]}  Nd2 {[%clk 0:00:46]} 48. Nd5+ {[%clk 0:00:12]}  Kf3 {[%clk 0:00:46]} 49. Kh4 {[%clk 0:00:12]}  Ne4 {[%clk 0:00:44]} 50. Kh5 {[%clk 0:00:11]}  b3 {[%clk 0:00:45]} 51. h4 {[%clk 0:00:08]}  b2 {[%clk 0:00:45]} 0-1


[Site "https://www.chess.com"]

[Event "Titled Tuesday Blitz August 22 Late 2023"]
[White "Sargsyan, Shant"]
[Black "Geivondian, Arman"]
[WhiteFideId "13306766"]
[BlackFideId "24102032"]
[WhiteElo "2933"]
[BlackElo "2488"]
[Result "0-1"]
[Round "1"]
[TimeControl "180+1"]
[Date "2023.08.22"]
[WhiteClock "0:00:00"]
[BlackClock "0:00:27"]
[Board "36"]

1. c4 {[%clk 0:03:00]}  e5 {[%clk 0:02:58]} 2. g3 {[%clk 0:03:01]}  Nf6 {[%clk 0:02:58]} 3. Bg2 {[%clk 0:03:01]}  d5 {[%clk 0:02:59]} 4. cxd5 {[%clk 0:03:02]}  Nxd5 {[%clk 0:03:00]} 5. Nc3 {[%clk 0:03:02]}  Nb6 {[%clk 0:03:00]} 6. d3 {[%clk 0:03:03]}  Bd6 {[%clk 0:03:00]} 7. Be3 {[%clk 0:03:03]}  O-O {[%clk 0:03:00]} 8. Rc1 {[%clk 0:03:03]}  c6 {[%clk 0:03:00]} 9. Nf3 {[%clk 0:03:03]}  Bc7 {[%clk 0:02:58]} 10. O-O {[%clk 0:03:03]}  Be6 {[%clk 0:02:58]} 11. Ng5 {[%clk 0:02:59]}  Bd5 {[%clk 0:02:55]} 12. Nxd5 {[%clk 0:02:58]}  cxd5 {[%clk 0:02:56]} 13. h4 {[%clk 0:02:54]}  Nc6 {[%clk 0:02:54]} 14. Qb3 {[%clk 0:02:53]}  h6 {[%clk 0:02:53]} 15. Nf3 {[%clk 0:02:49]}  d4 {[%clk 0:02:52]} 16. Bd2 {[%clk 0:02:49]}  Qd7 {[%clk 0:02:50]} 17. Rc2 {[%clk 0:02:44]}  Rac8 {[%clk 0:02:48]} 18. Rfc1 {[%clk 0:02:44]}  Bb8 {[%clk 0:02:48]} 19. a3 {[%clk 0:02:45]}  Qe6 {[%clk 0:02:43]} 20. Qxe6 {[%clk 0:02:44]}  fxe6 {[%clk 0:02:44]} 21. Bh3 {[%clk 0:02:42]}  Kf7 {[%clk 0:02:44]} 22. h5 {[%clk 0:02:43]}  Rcd8 {[%clk 0:02:35]} 23. Nh4 {[%clk 0:02:41]}  Rd7 {[%clk 0:02:27]} 24. Ng6 {[%clk 0:02:40]}  Rc8 {[%clk 0:02:26]} 25. Bg2 {[%clk 0:02:37]}  Ne7 {[%clk 0:02:24]} 26. Rxc8 {[%clk 0:02:35]}  Nexc8 {[%clk 0:02:25]} 27. Ba5 {[%clk 0:02:31]}  Kf6 {[%clk 0:02:24]} 28. Be4 {[%clk 0:02:24]}  Ne7 {[%clk 0:02:21]} 29. Nxe7 {[%clk 0:02:06]}  Kxe7 {[%clk 0:02:22]} 30. Kg2 {[%clk 0:02:00]}  Bd6 {[%clk 0:02:21]} 31. Kf3 {[%clk 0:01:52]}  Na4 {[%clk 0:02:14]} 32. Rc2 {[%clk 0:01:37]}  b6 {[%clk 0:02:14]} 33. Bd2 {[%clk 0:01:36]}  Rc7 {[%clk 0:02:14]} 34. Rxc7+ {[%clk 0:01:28]}  Bxc7 {[%clk 0:02:15]} 35. Bc1 {[%clk 0:01:25]}  Bd6 {[%clk 0:02:07]} 36. g4 {[%clk 0:01:24]}  Kf6 {[%clk 0:02:07]} 37. Bc6 {[%clk 0:01:20]}  Nc5 {[%clk 0:02:06]} 38. b4 {[%clk 0:01:21]}  Nb3 {[%clk 0:02:04]} 39. Bb2 {[%clk 0:01:20]}  Nd2+ {[%clk 0:02:04]} 40. Kg2 {[%clk 0:01:19]}  a5 {[%clk 0:02:02]} 41. bxa5 {[%clk 0:01:19]}  bxa5 {[%clk 0:02:03]} 42. Ba4 {[%clk 0:01:19]}  Nb1 {[%clk 0:02:02]} 43. e3 {[%clk 0:00:59]}  Bxa3 {[%clk 0:01:56]} 44. Ba1 {[%clk 0:00:59]}  Nc3 {[%clk 0:01:36]} 45. Bc2 {[%clk 0:00:54]}  Ke7 {[%clk 0:01:32]} 46. Kf3 {[%clk 0:00:54]}  Kd6 {[%clk 0:01:32]} 47. Bb3 {[%clk 0:00:53]}  Bb4 {[%clk 0:01:26]} 48. Bc2 {[%clk 0:00:52]}  Kc5 {[%clk 0:01:16]} 49. Bb3 {[%clk 0:00:53]}  Kd6 {[%clk 0:01:15]} 50. Bc2 {[%clk 0:00:52]}  Bc5 {[%clk 0:01:15]} 51. Bb3 {[%clk 0:00:51]}  a4 {[%clk 0:01:13]} 52. Bc4 {[%clk 0:00:51]}  a3 {[%clk 0:01:13]} 53. exd4 {[%clk 0:00:33]}  exd4 {[%clk 0:00:50]} 54. g5 {[%clk 0:00:33]}  hxg5 {[%clk 0:00:49]} 55. Kg4 {[%clk 0:00:33]}  Ke7 {[%clk 0:00:44]} 56. Kxg5 {[%clk 0:00:33]}  e5 {[%clk 0:00:44]} 57. Kg6 {[%clk 0:00:30]}  Kf8 {[%clk 0:00:44]} 58. Kf5 {[%clk 0:00:31]}  Bd6 {[%clk 0:00:38]} 59. Ke6 {[%clk 0:00:30]}  Bb8 {[%clk 0:00:38]} 60. f3 {[%clk 0:00:25]}  Ne2 {[%clk 0:00:33]} 61. Kd7 {[%clk 0:00:23]}  Nf4 {[%clk 0:00:30]} 62. Kc8 {[%clk 0:00:18]}  Bd6 {[%clk 0:00:30]} 63. Kd7 {[%clk 0:00:19]}  Be7 {[%clk 0:00:30]} 64. Ba2 {[%clk 0:00:06]}  Nxh5 {[%clk 0:00:30]} 65. Ke6 {[%clk 0:00:06]}  Bf6 {[%clk 0:00:31]} 66. Kd5 {[%clk 0:00:05]}  Nf4+ {[%clk 0:00:30]} 67. Kc4 {[%clk 0:00:05]}  g5 {[%clk 0:00:29]} 68. Bb3 {[%clk 0:00:06]}  Kg7 {[%clk 0:00:28]} 69. Bd1 {[%clk 0:00:06]}  Be7 {[%clk 0:00:28]} 70. Ba4 {[%clk 0:00:06]}  Kh6 {[%clk 0:00:27]} 71. Bd7 {[%clk 0:00:07]}  Kh5 {[%clk 0:00:27]} 72. Bg4+ {[%clk 0:00:05]}  Kh4 {[%clk 0:00:28]} 73. Kb5 {[%clk 0:00:06]}  Nxd3 {[%clk 0:00:27]} 74. Kc6 {[%clk 0:00:05]}  Nf4 {[%clk 0:00:27]} 75. Kd7 {[%clk 0:00:04]}  Bb4 {[%clk 0:00:27]} 76. Kc6 {[%clk 0:00:00]}  Bc3 {[%clk 0:00:27]} 0-1


[Site "https://www.chess.com"]

[Event "Titled Tuesday Blitz August 22 Late 2023"]
[White "Girsh, Daniel"]
[Black "Dominguez Perez, Leinier"]
[WhiteFideId "30949190"]
[BlackFideId "3503240"]
[WhiteElo "2484"]
[BlackElo "2932"]
[Result "0-1"]
[Round "1"]
[TimeControl "180+1"]
[Date "2023.08.22"]
[WhiteClock "0:00:00"]
[BlackClock "0:00:08"]
[Board "37"]

1. d4 {[%clk 0:03:00]}  d5 {[%clk 0:02:59]} 2. c4 {[%clk 0:02:57]}  dxc4 {[%clk 0:02:59]} 3. Nf3 {[%clk 0:02:56]}  c6 {[%clk 0:02:55]} 4. a4 {[%clk 0:02:54]}  Bg4 {[%clk 0:02:47]} 5. e3 {[%clk 0:02:50]}  Nd7 {[%clk 0:02:35]} 6. Bxc4 {[%clk 0:02:49]}  e6 {[%clk 0:02:35]} 7. O-O {[%clk 0:02:47]}  Ngf6 {[%clk 0:02:35]} 8. b3 {[%clk 0:02:42]}  Be7 {[%clk 0:02:32]} 9. Nbd2 {[%clk 0:02:41]}  O-O {[%clk 0:02:31]} 10. Bb2 {[%clk 0:02:41]}  Qa5 {[%clk 0:02:28]} 11. h3 {[%clk 0:02:40]}  Bh5 {[%clk 0:02:27]} 12. Be2 {[%clk 0:02:35]}  Rac8 {[%clk 0:02:16]} 13. Nc4 {[%clk 0:02:34]}  Qc7 {[%clk 0:02:17]} 14. Rc1 {[%clk 0:02:32]}  Rfd8 {[%clk 0:02:16]} 15. Nce5 {[%clk 0:02:20]}  Nxe5 {[%clk 0:02:09]} 16. Nxe5 {[%clk 0:02:19]}  Bxe2 {[%clk 0:02:09]} 17. Qxe2 {[%clk 0:02:19]}  Nd7 {[%clk 0:02:05]} 18. Nc4 {[%clk 0:02:17]}  Nb6 {[%clk 0:01:58]} 19. Ne5 {[%clk 0:02:08]}  Bf6 {[%clk 0:01:43]} 20. Nd3 {[%clk 0:02:07]}  Nd7 {[%clk 0:01:37]} 21. Rfd1 {[%clk 0:02:04]}  Qb6 {[%clk 0:01:37]} 22. Nc5 {[%clk 0:02:02]}  Nxc5 {[%clk 0:01:33]} 23. dxc5 {[%clk 0:01:58]}  Qxb3 {[%clk 0:01:33]} 24. Bxf6 {[%clk 0:01:57]}  gxf6 {[%clk 0:01:34]} 25. Qg4+ {[%clk 0:01:56]}  Kf8 {[%clk 0:01:33]} 26. Rxd8+ {[%clk 0:01:56]}  Rxd8 {[%clk 0:01:32]} 27. Qf4 {[%clk 0:01:57]}  Qb2 {[%clk 0:01:29]} 28. Rc4 {[%clk 0:01:47]}  Rd1+ {[%clk 0:01:18]} 29. Kh2 {[%clk 0:01:46]}  Qe5 {[%clk 0:01:18]} 30. Rb4 {[%clk 0:01:40]}  Qxf4+ {[%clk 0:01:17]} 31. exf4 {[%clk 0:01:40]}  Rd7 {[%clk 0:01:17]} 32. Kg3 {[%clk 0:01:40]}  f5 {[%clk 0:01:16]} 33. Kf3 {[%clk 0:01:39]}  Ke7 {[%clk 0:01:15]} 34. Ke3 {[%clk 0:01:39]}  Kd8 {[%clk 0:01:15]} 35. g4 {[%clk 0:01:39]}  Kc7 {[%clk 0:01:12]} 36. a5 {[%clk 0:01:22]}  Rd5 {[%clk 0:01:11]} 37. Rc4 {[%clk 0:01:22]}  b6 {[%clk 0:01:04]} 38. axb6+ {[%clk 0:01:18]}  axb6 {[%clk 0:01:05]} 39. cxb6+ {[%clk 0:01:19]}  Kxb6 {[%clk 0:01:05]} 40. Rb4+ {[%clk 0:01:20]}  Rb5 {[%clk 0:01:03]} 41. Rd4 {[%clk 0:01:19]}  Rb3+ {[%clk 0:01:04]} 42. Ke2 {[%clk 0:01:18]}  Kc7 {[%clk 0:01:04]} 43. Ra4 {[%clk 0:01:13]}  c5 {[%clk 0:01:03]} 44. Ra7+ {[%clk 0:01:05]}  Rb7 {[%clk 0:01:03]} 45. Ra8 {[%clk 0:01:05]}  c4 {[%clk 0:00:55]} 46. Rh8 {[%clk 0:01:02]}  Rb2+ {[%clk 0:00:48]} 47. Ke3 {[%clk 0:00:57]}  Rb3+ {[%clk 0:00:47]} 48. Kd4 {[%clk 0:00:55]}  Rxh3 {[%clk 0:00:47]} 49. gxf5 {[%clk 0:00:53]}  c3 {[%clk 0:00:47]} 50. fxe6 {[%clk 0:00:47]}  fxe6 {[%clk 0:00:34]} 51. Ra8 {[%clk 0:00:46]}  Rf3 {[%clk 0:00:29]} 52. Ra2 {[%clk 0:00:31]}  h5 {[%clk 0:00:23]} 53. Ke4 {[%clk 0:00:29]}  Rh3 {[%clk 0:00:23]} 54. f3 {[%clk 0:00:27]}  Rh1 {[%clk 0:00:20]} 55. Rc2 {[%clk 0:00:23]}  Re1+ {[%clk 0:00:20]} 56. Kd4 {[%clk 0:00:20]}  Kd6 {[%clk 0:00:20]} 57. Rxc3 {[%clk 0:00:19]}  Ke7 {[%clk 0:00:20]} 58. Rc7+ {[%clk 0:00:12]}  Kf6 {[%clk 0:00:20]} 59. Rh7 {[%clk 0:00:12]}  Kg6 {[%clk 0:00:18]} 60. Rh8 {[%clk 0:00:13]}  Kf5 {[%clk 0:00:12]} 61. Rxh5+ {[%clk 0:00:12]}  Kxf4 {[%clk 0:00:12]} 62. Rh4+ {[%clk 0:00:06]}  Kxf3 {[%clk 0:00:11]} 63. Rh6 {[%clk 0:00:04]}  e5+ {[%clk 0:00:10]} 64. Kd3 {[%clk 0:00:03]}  Rd1+ {[%clk 0:00:09]} 65. Kc2 {[%clk 0:00:03]}  Rd8 {[%clk 0:00:09]} 66. Rf6+ {[%clk 0:00:03]}  Ke3 {[%clk 0:00:08]} 67. Kc1 {[%clk 0:00:01]}  e4 {[%clk 0:00:09]} 68. Kc2 {[%clk 0:00:01]}  Ke2 {[%clk 0:00:09]} 69. Kc1 {[%clk 0:00:02]}  Rc8+ {[%clk 0:00:08]} 70. Kb2 {[%clk 0:00:02]}  e3 {[%clk 0:00:09]} 71. Kb3 {[%clk 0:00:01]}  Kd2 {[%clk 0:00:09]} 72. Rd6+ {[%clk 0:00:02]}  Ke1 {[%clk 0:00:09]} 73. Re6 {[%clk 0:00:03]}  e2 {[%clk 0:00:09]} 74. Kb2 {[%clk 0:00:04]}  Rf8 {[%clk 0:00:08]} 75. Re5 {[%clk 0:00:00]}  Kf2 {[%clk 0:00:08]} 0-1


[Site "https://www.chess.com"]

[Event "Titled Tuesday Blitz August 22 Late 2023"]
[White "Matta, Nicholas"]
[Black "Kramnik, Vladimir"]
[WhiteFideId "30914523"]
[BlackFideId "4101588"]
[WhiteElo "2483"]
[BlackElo "2929"]
[Result "0-1"]
[Round "1"]
[TimeControl "180+1"]
[Date "2023.08.22"]
[WhiteClock "0:00:33"]
[BlackClock "0:01:41"]
[Board "39"]

1. d4 {[%clk 0:02:59]}  Nf6 {[%clk 0:02:55]} 2. c4 {[%clk 0:02:59]}  e6 {[%clk 0:02:53]} 3. g3 {[%clk 0:02:59]}  d5 {[%clk 0:02:52]} 4. Bg2 {[%clk 0:02:58]}  Bb4+ {[%clk 0:02:51]} 5. Nd2 {[%clk 0:02:58]}  O-O {[%clk 0:02:50]} 6. Nf3 {[%clk 0:02:58]}  b6 {[%clk 0:02:49]} 7. O-O {[%clk 0:02:57]}  Bb7 {[%clk 0:02:49]} 8. a3 {[%clk 0:02:57]}  Be7 {[%clk 0:02:48]} 9. cxd5 {[%clk 0:02:56]}  exd5 {[%clk 0:02:48]} 10. b4 {[%clk 0:02:56]}  c6 {[%clk 0:02:41]} 11. Bb2 {[%clk 0:02:53]}  a5 {[%clk 0:02:40]} 12. Qb3 {[%clk 0:02:54]}  b5 {[%clk 0:02:36]} 13. Ne5 {[%clk 0:02:48]}  Na6 {[%clk 0:02:31]} 14. Rfc1 {[%clk 0:02:36]}  Rc8 {[%clk 0:02:16]} 15. Bh3 {[%clk 0:02:25]}  a4 {[%clk 0:02:08]} 16. Qf3 {[%clk 0:02:16]}  Rc7 {[%clk 0:02:08]} 17. Rc2 {[%clk 0:02:08]}  Ne4 {[%clk 0:02:04]} 18. Rac1 {[%clk 0:01:27]}  Ng5 {[%clk 0:02:01]} 19. Qg2 {[%clk 0:01:27]}  Nxh3+ {[%clk 0:01:57]} 20. Qxh3 {[%clk 0:01:28]}  Nb8 {[%clk 0:01:56]} 21. e4 {[%clk 0:01:25]}  dxe4 {[%clk 0:01:49]} 22. Nxe4 {[%clk 0:01:26]}  c5 {[%clk 0:01:47]} 23. Nxc5 {[%clk 0:01:20]}  Ba8 {[%clk 0:01:44]} 24. Ne6 {[%clk 0:00:52]}  Qd5 {[%clk 0:01:42]} 25. f3 {[%clk 0:00:35]}  Rxc2 {[%clk 0:01:43]} 26. Rxc2 {[%clk 0:00:33]}  fxe6 {[%clk 0:01:41]} 0-1


[Site "https://www.chess.com"]

[Event "Titled Tuesday Blitz August 22 Late 2023"]
[White "Sanal, Vahap"]
[Black "Chernikov, Vladimir"]
[WhiteFideId "6300545"]
[BlackFideId "14112914"]
[WhiteElo "2916"]
[BlackElo "2477"]
[Result "1-0"]
[Round "1"]
[TimeControl "180+1"]
[Date "2023.08.22"]
[WhiteClock "0:02:51"]
[BlackClock "0:02:28"]
[Board "44"]

1. b3 {[%clk 0:03:00]}  e5 {[%clk 0:02:57]} 2. Bb2 {[%clk 0:03:01]}  Nc6 {[%clk 0:02:57]} 3. e3 {[%clk 0:02:57]}  d5 {[%clk 0:02:56]} 4. Bb5 {[%clk 0:02:56]}  Bd6 {[%clk 0:02:55]} 5. Nf3 {[%clk 0:02:54]}  f6 {[%clk 0:02:52]} 6. d4 {[%clk 0:02:53]}  e4 {[%clk 0:02:51]} 7. Nfd2 {[%clk 0:02:53]}  Ne7 {[%clk 0:02:49]} 8. c4 {[%clk 0:02:54]}  O-O {[%clk 0:02:49]} 9. c5 {[%clk 0:02:52]}  a6 {[%clk 0:02:32]} 10. Bxc6 {[%clk 0:02:52]}  bxc6 {[%clk 0:02:31]} 11. cxd6 {[%clk 0:02:52]}  Qxd6 {[%clk 0:02:28]} 12. Ba3 {[%clk 0:02:51]} 1-0


[Site "https://www.chess.com"]

[Event "Titled Tuesday Blitz August 22 Late 2023"]
[White "Ibarra Jerez, Jose Carlos"]
[Black "Seletsky, Grigory"]
[WhiteFideId "2226332"]
[BlackFideId "14112191"]
[WhiteElo "2910"]
[BlackElo "2473"]
[Result "1-0"]
[Round "1"]
[TimeControl "180+1"]
[Date "2023.08.22"]
[WhiteClock "0:00:51"]
[BlackClock "0:00:19"]
[Board "46"]

1. e4 {[%clk 0:02:58]}  e6 {[%clk 0:02:59]} 2. d4 {[%clk 0:02:57]}  d5 {[%clk 0:02:59]} 3. Nc3 {[%clk 0:02:58]}  Nc6 {[%clk 0:02:59]} 4. e5 {[%clk 0:02:57]}  Nge7 {[%clk 0:02:59]} 5. h4 {[%clk 0:02:55]}  Nf5 {[%clk 0:02:58]} 6. Nf3 {[%clk 0:02:53]}  h5 {[%clk 0:02:56]} 7. g3 {[%clk 0:02:53]}  b6 {[%clk 0:02:53]} 8. Bg5 {[%clk 0:02:43]}  Be7 {[%clk 0:02:52]} 9. Bb5 {[%clk 0:02:39]}  Bb7 {[%clk 0:02:52]} 10. Ne2 {[%clk 0:02:39]}  a6 {[%clk 0:02:52]} 11. Bd3 {[%clk 0:02:38]}  Qd7 {[%clk 0:02:34]} 12. c3 {[%clk 0:02:36]}  O-O-O {[%clk 0:02:17]} 13. Bxe7 {[%clk 0:02:32]}  Ncxe7 {[%clk 0:02:15]} 14. O-O {[%clk 0:02:31]}  Kb8 {[%clk 0:02:13]} 15. a4 {[%clk 0:02:30]}  c5 {[%clk 0:02:11]} 16. a5 {[%clk 0:02:27]}  c4 {[%clk 0:02:04]} 17. Bxf5 {[%clk 0:02:27]}  Nxf5 {[%clk 0:02:03]} 18. axb6 {[%clk 0:02:27]}  Qb5 {[%clk 0:02:03]} 19. b3 {[%clk 0:02:24]}  Qxb3 {[%clk 0:01:57]} 20. Qxb3 {[%clk 0:02:20]}  cxb3 {[%clk 0:01:57]} 21. Rfb1 {[%clk 0:02:21]}  Rc8 {[%clk 0:01:51]} 22. Ng5 {[%clk 0:02:20]}  Rhf8 {[%clk 0:01:49]} 23. Rxb3 {[%clk 0:02:20]}  Rc6 {[%clk 0:01:45]} 24. Nf4 {[%clk 0:02:20]}  g6 {[%clk 0:01:43]} 25. Nd3 {[%clk 0:02:20]}  Nh6 {[%clk 0:01:26]} 26. Nc5 {[%clk 0:02:18]}  Rxc5 {[%clk 0:01:25]} 27. dxc5 {[%clk 0:02:18]}  Rc8 {[%clk 0:01:25]} 28. Ra5 {[%clk 0:02:16]}  Rf8 {[%clk 0:01:07]} 29. Rb4 {[%clk 0:02:15]}  Ng4 {[%clk 0:01:05]} 30. Rf4 {[%clk 0:01:46]}  Nxe5 {[%clk 0:01:03]} 31. Nxe6 {[%clk 0:01:47]}  Rc8 {[%clk 0:01:01]} 32. Nd4 {[%clk 0:01:46]}  Nd3 {[%clk 0:00:58]} 33. Rxf7 {[%clk 0:01:44]}  Nxc5 {[%clk 0:00:59]} 34. Rc7 {[%clk 0:01:38]}  Ne4 {[%clk 0:00:54]} 35. Rxc8+ {[%clk 0:01:38]}  Kxc8 {[%clk 0:00:54]} 36. f3 {[%clk 0:01:35]}  Nd6 {[%clk 0:00:52]} 37. Rc5+ {[%clk 0:01:33]}  Kb8 {[%clk 0:00:51]} 38. Nc6+ {[%clk 0:01:32]}  Ka8 {[%clk 0:00:46]} 39. Na5 {[%clk 0:01:30]}  d4 {[%clk 0:00:46]} 40. cxd4 {[%clk 0:01:20]}  Bxf3 {[%clk 0:00:45]} 41. Rc7 {[%clk 0:01:16]}  Kb8 {[%clk 0:00:40]} 42. Nc6+ {[%clk 0:01:05]}  Bxc6 {[%clk 0:00:39]} 43. Rxc6 {[%clk 0:01:06]}  Nf5 {[%clk 0:00:39]} 44. Rxg6 {[%clk 0:01:06]}  Nxd4 {[%clk 0:00:38]} 45. Rh6 {[%clk 0:00:59]}  Kb7 {[%clk 0:00:39]} 46. Rxh5 {[%clk 0:00:58]}  Kxb6 {[%clk 0:00:39]} 47. Rh8 {[%clk 0:00:58]}  a5 {[%clk 0:00:38]} 48. h5 {[%clk 0:00:58]}  a4 {[%clk 0:00:39]} 49. Ra8 {[%clk 0:00:57]}  Kb5 {[%clk 0:00:37]} 50. h6 {[%clk 0:00:57]}  Nf3+ {[%clk 0:00:33]} 51. Kf2 {[%clk 0:00:56]}  Ng5 {[%clk 0:00:33]} 52. Ke3 {[%clk 0:00:53]}  Kb4 {[%clk 0:00:33]} 53. Kf4 {[%clk 0:00:54]}  Nh7 {[%clk 0:00:32]} 54. Ra7 {[%clk 0:00:53]}  Nf8 {[%clk 0:00:26]} 55. h7 {[%clk 0:00:52]}  a3 {[%clk 0:00:23]} 56. Kf5 {[%clk 0:00:47]}  Nxh7 {[%clk 0:00:21]} 57. Rxh7 {[%clk 0:00:48]}  a2 {[%clk 0:00:21]} 58. Ra7 {[%clk 0:00:48]}  Kb3 {[%clk 0:00:21]} 59. g4 {[%clk 0:00:48]}  Kb2 {[%clk 0:00:22]} 60. Rxa2+ {[%clk 0:00:48]}  Kxa2 {[%clk 0:00:21]} 61. g5 {[%clk 0:00:49]}  Kb3 {[%clk 0:00:21]} 62. g6 {[%clk 0:00:50]}  Kc4 {[%clk 0:00:21]} 63. g7 {[%clk 0:00:50]}  Kd5 {[%clk 0:00:22]} 64. g8=Q+ {[%clk 0:00:51]}  Kd6 {[%clk 0:00:19]} 65. Qe6+ {[%clk 0:00:51]} 1-0


[Site "https://www.chess.com"]

[Event "Titled Tuesday Blitz August 22 Late 2023"]
[White "Toropov, Pavel"]
[Black "Sjugirov, Sanan"]
[WhiteFideId "24129178"]
[BlackFideId "4189302"]
[WhiteElo "2470"]
[BlackElo "2890"]
[Result "0-1"]
[Round "1"]
[TimeControl "180+1"]
[Date "2023.08.22"]
[WhiteClock "0:00:07"]
[BlackClock "0:00:02"]
[Board "49"]

1. e4 {[%clk 0:02:54]}  c5 {[%clk 0:02:56]} 2. Nf3 {[%clk 0:02:54]}  e6 {[%clk 0:02:56]} 3. d4 {[%clk 0:02:54]}  cxd4 {[%clk 0:02:57]} 4. Nxd4 {[%clk 0:02:54]}  a6 {[%clk 0:02:58]} 5. Nc3 {[%clk 0:02:54]}  b5 {[%clk 0:02:56]} 6. Bd3 {[%clk 0:02:51]}  Bb7 {[%clk 0:02:52]} 7. Qf3 {[%clk 0:02:44]}  Nc6 {[%clk 0:02:46]} 8. Be3 {[%clk 0:02:35]}  Nge7 {[%clk 0:02:34]} 9. Qg3 {[%clk 0:02:28]}  Ng6 {[%clk 0:02:31]} 10. O-O-O {[%clk 0:02:10]}  Qb8 {[%clk 0:02:18]} 11. Nxc6 {[%clk 0:01:17]}  Bxc6 {[%clk 0:02:10]} 12. f4 {[%clk 0:01:12]}  Bb4 {[%clk 0:01:32]} 13. h4 {[%clk 0:00:55]}  Bxc3 {[%clk 0:01:25]} 14. bxc3 {[%clk 0:00:54]}  Rg8 {[%clk 0:01:11]} 15. e5 {[%clk 0:00:43]}  b4 {[%clk 0:00:45]} 16. c4 {[%clk 0:00:39]}  Qd8 {[%clk 0:00:25]} 17. h5 {[%clk 0:00:37]}  Nf8 {[%clk 0:00:25]} 18. Bc5 {[%clk 0:00:34]}  Qa5 {[%clk 0:00:20]} 19. Bd6 {[%clk 0:00:19]}  Qa3+ {[%clk 0:00:17]} 20. Kb1 {[%clk 0:00:19]}  Qa5 {[%clk 0:00:06]} 21. Qg5 {[%clk 0:00:09]}  Qd8 {[%clk 0:00:05]} 22. Qg3 {[%clk 0:00:09]}  h6 {[%clk 0:00:05]} 23. Qe3 {[%clk 0:00:08]}  Rh8 {[%clk 0:00:03]} 24. g4 {[%clk 0:00:08]}  Nh7 {[%clk 0:00:03]} 25. Rdg1 {[%clk 0:00:07]}  Bxh1 {[%clk 0:00:02]} 26. Rxh1 {[%clk 0:00:07]}  Rc8 {[%clk 0:00:03]} 27. g5 {[%clk 0:00:07]}  hxg5 {[%clk 0:00:03]} 28. f5 {[%clk 0:00:07]}  exf5 {[%clk 0:00:02]} 29. Bxf5 {[%clk 0:00:06]}  Nf8 {[%clk 0:00:03]} 30. Re1 {[%clk 0:00:03]}  Ne6 {[%clk 0:00:03]} 31. Qg3 {[%clk 0:00:03]}  Rxc4 {[%clk 0:00:03]} 32. Rh1 {[%clk 0:00:02]}  Qa8 {[%clk 0:00:02]} 33. Rh2 {[%clk 0:00:02]}  Qd5 {[%clk 0:00:02]} 34. Bd3 {[%clk 0:00:02]}  Rd4 {[%clk 0:00:03]} 35. Qf2 {[%clk 0:00:02]}  Rxd3 {[%clk 0:00:03]} 36. cxd3 {[%clk 0:00:01]}  Qxd3+ {[%clk 0:00:04]} 37. Kb2 {[%clk 0:00:02]}  Qc3+ {[%clk 0:00:04]} 38. Kb1 {[%clk 0:00:03]}  Qd3+ {[%clk 0:00:05]} 39. Kb2 {[%clk 0:00:03]}  Nd4 {[%clk 0:00:05]} 40. Qd2 {[%clk 0:00:03]}  Qxd2+ {[%clk 0:00:05]} 41. Rxd2 {[%clk 0:00:03]}  Nb5 {[%clk 0:00:05]} 42. Bxb4 {[%clk 0:00:04]}  Rxh5 {[%clk 0:00:04]} 43. Rc2 {[%clk 0:00:04]}  Kd8 {[%clk 0:00:03]} 44. Ba5+ {[%clk 0:00:04]}  Ke7 {[%clk 0:00:03]} 45. Bb4+ {[%clk 0:00:05]}  Ke6 {[%clk 0:00:04]} 46. a4 {[%clk 0:00:06]}  Nd4 {[%clk 0:00:04]} 47. Rd2 {[%clk 0:00:06]}  Nf3 {[%clk 0:00:04]} 48. Rd6+ {[%clk 0:00:06]}  Kxe5 {[%clk 0:00:05]} 49. Rxd7 {[%clk 0:00:07]}  Ke6 {[%clk 0:00:05]} 50. Rb7 {[%clk 0:00:07]}  g4 {[%clk 0:00:05]} 51. Rb6+ {[%clk 0:00:07]}  Kd5 {[%clk 0:00:05]} 52. Rxa6 {[%clk 0:00:08]}  Kc4 {[%clk 0:00:05]} 53. Bc3 {[%clk 0:00:07]}  Rh2+ {[%clk 0:00:04]} 54. Ka3 {[%clk 0:00:06]}  Kxc3 {[%clk 0:00:05]} 55. Rc6+ {[%clk 0:00:07]}  Kd4 {[%clk 0:00:05]} 56. a5 {[%clk 0:00:08]}  Ne5 {[%clk 0:00:06]} 57. Rc8 {[%clk 0:00:07]}  Nc4+ {[%clk 0:00:05]} 58. Kb3 {[%clk 0:00:07]}  Rb2+ {[%clk 0:00:05]} 59. Ka4 {[%clk 0:00:07]}  Kc3 {[%clk 0:00:02]} 60. a6 {[%clk 0:00:07]}  Rb4# {[%clk 0:00:02]} 0-1


[Site "https://www.chess.com"]